[Event "Early-Titled-Tuesday-Blitz-January-30-2024"]
[Site "Chess.com"]
[Date "2024.01.30"]
[Round "7"]
[White "xakevicius91"]
[Black "ValentinDragnev"]
[Result "1-0"]
[WhiteElo "2589"]
[BlackElo "2764"]
[TimeControl "180+1"]
[EndTime "9:18:39 PST"]
[Termination "xakevicius91 won by resignation"]

1. e4 {[%clk 0:03:00.9]} 1... c5 {[%clk 0:02:59.6]} 2. Nf3 {[%clk 0:03:00.7]}
2... e6 {[%clk 0:03:00.2]} 3. b3 {[%clk 0:03:00.7]} 3... b6 {[%clk 0:02:59.3]}
4. d4 {[%clk 0:02:59.8]} 4... cxd4 {[%clk 0:02:59]} 5. Nxd4 {[%clk 0:03:00.5]}
5... Bb7 {[%clk 0:02:59.7]} 6. Bd3 {[%clk 0:03:00.9]} 6... a6 {[%clk 0:03:00.2]}
7. Bb2 {[%clk 0:03:00.4]} 7... d6 {[%clk 0:03:00.7]} 8. Qe2 {[%clk 0:03:00.6]}
8... Nf6 {[%clk 0:03:01.4]} 9. Nd2 {[%clk 0:02:59.9]} 9... Nbd7 {[%clk
0:03:02.1]} 10. O-O-O {[%clk 0:02:59.8]} 10... Be7 {[%clk 0:03:01.9]} 11. g4
{[%clk 0:02:59.5]} 11... h6 {[%clk 0:03:02.3]} 12. Kb1 {[%clk 0:02:59.3]} 12...
Ne5 {[%clk 0:02:59.2]} 13. f3 {[%clk 0:02:58.5]} 13... Qc7 {[%clk 0:02:39.6]}
14. h4 {[%clk 0:02:57.4]} 14... Nfd7 {[%clk 0:02:38]} 15. f4 {[%clk 0:02:42.6]}
15... Nxd3 {[%clk 0:02:36.9]} 16. cxd3 {[%clk 0:02:42.7]} 16... Qd8 {[%clk
0:02:35.2]} 17. g5 {[%clk 0:02:40.6]} 17... Nf8 {[%clk 0:02:26.9]} 18. Rhf1
{[%clk 0:02:09.9]} 18... hxg5 {[%clk 0:02:24.1]} 19. hxg5 {[%clk 0:02:10]} 19...
Qd7 {[%clk 0:02:16.2]} 20. Rc1 {[%clk 0:02:07.3]} 20... Rc8 {[%clk 0:02:07.5]}
21. Rxc8+ {[%clk 0:02:01.4]} 21... Qxc8 {[%clk 0:02:06.7]} 22. f5 {[%clk
0:01:49.7]} 22... Bxg5 {[%clk 0:01:48.7]} 23. fxe6 {[%clk 0:01:49.2]} 23... Nxe6
{[%clk 0:01:47.9]} 24. Nf5 {[%clk 0:01:47.8]} 24... Qd7 {[%clk 0:01:44.7]} 25.
Nc4 {[%clk 0:01:45.3]} 25... Kf8 {[%clk 0:01:42.9]} 26. Ncxd6 {[%clk 0:01:26.4]}
26... Kg8 {[%clk 0:01:42.8]} 27. Qg4 {[%clk 0:01:22.2]} 27... f6 {[%clk
0:01:37.5]} 28. Bc1 {[%clk 0:01:08.8]} 28... Bc6 {[%clk 0:01:24.5]} 29. Bxg5
{[%clk 0:00:57.3]} 29... Nxg5 {[%clk 0:01:25.4]} 30. Rc1 {[%clk 0:00:57.6]}
30... Kf8 {[%clk 0:01:14.1]} 31. e5 {[%clk 0:00:50.3]} 31... Rh1 {[%clk
0:01:07.9]} 32. Rxh1 {[%clk 0:00:45.2]} 32... Bxh1 {[%clk 0:01:08.8]} 33. exf6
{[%clk 0:00:44.5]} 33... gxf6 {[%clk 0:01:06.6]} 34. Qh4 {[%clk 0:00:32.1]}
34... Qh7 {[%clk 0:01:06.6]} 35. Qd4 {[%clk 0:00:32.1]} 35... Qg6 {[%clk
0:00:38.8]} 36. Qxb6 {[%clk 0:00:24.8]} 36... Kg8 {[%clk 0:00:26.7]} 37. Ne7+
{[%clk 0:00:24.6]} 1-0

[Event "Early-Titled-Tuesday-Blitz-January-30-2024"]
[Site "Chess.com"]
[Date "2024.01.30"]
[Round "7"]
[White "Muslim_player_05"]
[Black "kingofthenil"]
[Result "0-1"]
[WhiteElo "2500"]
[BlackElo "2664"]
[TimeControl "180+1"]
[EndTime "9:18:43 PST"]
[Termination "kingofthenil won on time"]

1. d4 {[%clk 0:02:56.3]} 1... Nf6 {[%clk 0:02:55.8]} 2. c4 {[%clk 0:02:56]} 2...
g6 {[%clk 0:02:55.3]} 3. Nc3 {[%clk 0:02:56.2]} 3... Bg7 {[%clk 0:02:55.5]} 4.
e4 {[%clk 0:02:56.4]} 4... Nc6 {[%clk 0:02:53.5]} 5. Be3 {[%clk 0:02:51.9]} 5...
e5 {[%clk 0:02:53.2]} 6. d5 {[%clk 0:02:50.2]} 6... Nd4 {[%clk 0:02:53.3]} 7.
Nge2 {[%clk 0:02:49.2]} 7... Ng4 {[%clk 0:02:51.4]} 8. Bxd4 {[%clk 0:02:28.9]}
8... exd4 {[%clk 0:02:50.9]} 9. Nxd4 {[%clk 0:02:29.8]} 9... h5 {[%clk
0:02:43.1]} 10. h3 {[%clk 0:02:18.5]} 10... Ne5 {[%clk 0:02:07.3]} 11. g3 {[%clk
0:02:08]} 11... h4 {[%clk 0:01:41.1]} 12. f4 {[%clk 0:01:54]} 12... hxg3 {[%clk
0:01:33.8]} 13. fxe5 {[%clk 0:01:53.9]} 13... Bxe5 {[%clk 0:01:34.7]} 14. Nf3
{[%clk 0:01:34.2]} 14... Qf6 {[%clk 0:01:32]} 15. Bg2 {[%clk 0:01:00.1]} 15...
d6 {[%clk 0:01:10.8]} 16. Qc2 {[%clk 0:00:35.6]} 16... Bxh3 {[%clk 0:00:57.7]}
17. Nxe5 {[%clk 0:00:26.9]} 17... Bxg2 {[%clk 0:00:01.4]} 18. Rxh8+ {[%clk
0:00:18.4]} 18... Qxh8 {[%clk 0:00:02.3]} 19. Qxg2 {[%clk 0:00:15.9]} 19... Qxe5
{[%clk 0:00:02.3]} 0-1

[Event "Early-Titled-Tuesday-Blitz-January-30-2024"]
[Site "Chess.com"]
[Date "2024.01.30"]
[Round "7"]
[White "lilylg"]
[Black "publicaccountcze"]
[Result "1-0"]
[WhiteElo "2160"]
[BlackElo "2272"]
[TimeControl "180+1"]
[EndTime "9:18:44 PST"]
[Termination "lilylg won by checkmate"]

1. d4 {[%clk 0:03:00.9]} 1... Nf6 {[%clk 0:02:51.6]} 2. c4 {[%clk 0:03:00.8]}
2... g6 {[%clk 0:02:50.4]} 3. d5 {[%clk 0:03:00.5]} 3... Bg7 {[%clk 0:02:47.7]}
4. Nc3 {[%clk 0:03:01.2]} 4... O-O {[%clk 0:02:45.9]} 5. e4 {[%clk 0:03:01.9]}
5... d6 {[%clk 0:02:45.3]} 6. h3 {[%clk 0:03:02.2]} 6... c6 {[%clk 0:02:45.3]}
7. Nf3 {[%clk 0:03:01.5]} 7... e6 {[%clk 0:02:29.8]} 8. Be2 {[%clk 0:03:00.4]}
8... exd5 {[%clk 0:02:27.2]} 9. exd5 {[%clk 0:03:01.3]} 9... cxd5 {[%clk
0:02:27]} 10. cxd5 {[%clk 0:03:02.2]} 10... Nbd7 {[%clk 0:02:22.4]} 11. O-O
{[%clk 0:03:02.7]} 11... Ne5 {[%clk 0:02:22.2]} 12. Bf4 {[%clk 0:02:58.1]} 12...
Re8 {[%clk 0:02:11.1]} 13. Bb5 {[%clk 0:02:49.4]} 13... Bd7 {[%clk 0:02:11.4]}
14. Re1 {[%clk 0:02:19.5]} 14... Nxf3+ {[%clk 0:01:54.2]} 15. Qxf3 {[%clk
0:02:20.4]} 15... a6 {[%clk 0:01:45.6]} 16. Rxe8+ {[%clk 0:02:08.9]} 16... Bxe8
{[%clk 0:01:40.9]} 17. Bxe8 {[%clk 0:01:57.1]} 17... Nxe8 {[%clk 0:01:37.8]} 18.
Re1 {[%clk 0:01:56.8]} 18... Rc8 {[%clk 0:01:25.1]} 19. Ne4 {[%clk 0:01:38.3]}
19... Qa5 {[%clk 0:00:38.3]} 20. Nc3 {[%clk 0:00:37.6]} 20... Qb6 {[%clk
0:00:13.4]} 21. Re7 {[%clk 0:00:32.6]} 21... Qxb2 {[%clk 0:00:10.8]} 22. Be5
{[%clk 0:00:07.2]} 22... Bxe5 {[%clk 0:00:01.9]} 23. Qxf7+ {[%clk 0:00:06.2]}
23... Kh8 {[%clk 0:00:02.4]} 24. Qxh7# {[%clk 0:00:06.8]} 1-0

[Event "Early-Titled-Tuesday-Blitz-January-30-2024"]
[Site "Chess.com"]
[Date "2024.01.30"]
[Round "7"]
[White "GoValya"]
[Black "whitemirrorninja"]
[Result "1-0"]
[WhiteElo "2324"]
[BlackElo "2467"]
[TimeControl "180+1"]
[EndTime "9:18:45 PST"]
[Termination "GoValya won by resignation"]

1. d4 {[%clk 0:03:00.9]} 1... g6 {[%clk 0:02:56.5]} 2. g3 {[%clk 0:03:00]} 2...
Bg7 {[%clk 0:02:56.1]} 3. Bg2 {[%clk 0:03:00.4]} 3... f5 {[%clk 0:02:56.7]} 4.
c4 {[%clk 0:02:59.6]} 4... Nf6 {[%clk 0:02:57.1]} 5. Nc3 {[%clk 0:02:59.6]} 5...
O-O {[%clk 0:02:56.6]} 6. Nh3 {[%clk 0:02:59.6]} 6... d6 {[%clk 0:02:53.8]} 7.
Qb3 {[%clk 0:02:51]} 7... c6 {[%clk 0:02:51.8]} 8. O-O {[%clk 0:02:48.1]} 8...
Nbd7 {[%clk 0:02:47.3]} 9. Ng5 {[%clk 0:02:12.2]} 9... Nb8 {[%clk 0:02:41.5]}
10. e4 {[%clk 0:01:56.6]} 10... h6 {[%clk 0:02:40.2]} 11. c5+ {[%clk 0:01:48.3]}
11... d5 {[%clk 0:02:38.1]} 12. exd5 {[%clk 0:01:48.5]} 12... cxd5 {[%clk
0:02:20.6]} 13. Nxd5 {[%clk 0:01:41.9]} 13... Kh8 {[%clk 0:02:19.4]} 14. Nh3
{[%clk 0:01:06.6]} 14... Nc6 {[%clk 0:02:06]} 15. Nhf4 {[%clk 0:00:51.9]} 15...
Kh7 {[%clk 0:01:59.5]} 16. Be3 {[%clk 0:00:40.5]} 16... Ne4 {[%clk 0:01:42.2]}
17. Rad1 {[%clk 0:00:28]} 17... g5 {[%clk 0:01:40.1]} 18. Nh5 {[%clk 0:00:26.8]}
18... Be6 {[%clk 0:01:39.2]} 19. Ndf6+ {[%clk 0:00:16.3]} 19... Nxf6 {[%clk
0:01:34.3]} 20. Nxf6+ {[%clk 0:00:16.4]} 20... Rxf6 {[%clk 0:01:33.5]} 21. d5
{[%clk 0:00:15.7]} 21... Bf7 {[%clk 0:01:33.4]} 22. Qxb7 {[%clk 0:00:14.8]}
22... Rb8 {[%clk 0:01:26.1]} 23. dxc6 {[%clk 0:00:14.8]} 23... Rxb7 {[%clk
0:01:23.1]} 24. Rxd8 {[%clk 0:00:14.7]} 24... Rc7 {[%clk 0:01:21]} 25. Rfd1
{[%clk 0:00:14.2]} 25... Rfxc6 {[%clk 0:01:14.2]} 26. Bxc6 {[%clk 0:00:13.3]}
26... Rxc6 {[%clk 0:01:15.1]} 27. R8d7 {[%clk 0:00:13.7]} 27... Bh5 {[%clk
0:01:11.9]} 28. R1d2 {[%clk 0:00:13]} 28... f4 {[%clk 0:01:10.7]} 29. gxf4
{[%clk 0:00:12.5]} 29... gxf4 {[%clk 0:01:11.6]} 30. Bxf4 {[%clk 0:00:12.9]}
30... Rxc5 {[%clk 0:01:11.9]} 31. R2d5 {[%clk 0:00:11.7]} 31... Rc4 {[%clk
0:01:04.3]} 32. Rxh5 {[%clk 0:00:11.2]} 32... Rxf4 {[%clk 0:01:04.9]} 33. Rxe7
{[%clk 0:00:11.5]} 33... Kg6 {[%clk 0:01:04.8]} 34. Rd5 {[%clk 0:00:11.3]} 34...
Bd4 {[%clk 0:01:03.1]} 35. Re2 {[%clk 0:00:10.2]} 35... Bb6 {[%clk 0:01:01.6]}
36. Rd6+ {[%clk 0:00:10.3]} 36... Kg5 {[%clk 0:01:01.5]} 37. Kg2 {[%clk
0:00:10.4]} 37... Rf5 {[%clk 0:01:00.1]} 38. h3 {[%clk 0:00:09.8]} 38... h5
{[%clk 0:00:59.7]} 39. a3 {[%clk 0:00:10]} 39... h4 {[%clk 0:00:59.8]} 40. Red2
{[%clk 0:00:09.3]} 40... Kf4 {[%clk 0:00:58]} 41. Re2 {[%clk 0:00:09.6]} 41...
Rg5+ {[%clk 0:00:57.9]} 42. Kf1 {[%clk 0:00:09.2]} 42... Kf3 {[%clk 0:00:55.4]}
43. Rf6+ {[%clk 0:00:09.3]} 1-0

[Event "Early-Titled-Tuesday-Blitz-January-30-2024"]
[Site "Chess.com"]
[Date "2024.01.30"]
[Round "7"]
[White "vesalhamedinia"]
[Black "IngOscarArdila"]
[Result "0-1"]
[WhiteElo "2474"]
[BlackElo "2336"]
[TimeControl "180+1"]
[EndTime "9:18:50 PST"]
[Termination "IngOscarArdila won on time"]

1. d4 {[%clk 0:03:00.9]} 1... Nf6 {[%clk 0:02:59.7]} 2. c4 {[%clk 0:03:01.2]}
2... e6 {[%clk 0:02:59]} 3. Nf3 {[%clk 0:03:01.6]} 3... Bb4+ {[%clk 0:02:57.1]}
4. Nbd2 {[%clk 0:03:01.5]} 4... O-O {[%clk 0:02:53.3]} 5. a3 {[%clk 0:02:58.8]}
5... Bxd2+ {[%clk 0:02:52]} 6. Qxd2 {[%clk 0:02:59.7]} 6... d5 {[%clk
0:02:51.9]} 7. e3 {[%clk 0:02:55]} 7... Ne4 {[%clk 0:02:48.3]} 8. Qc2 {[%clk
0:02:55]} 8... f5 {[%clk 0:02:48.2]} 9. b4 {[%clk 0:02:55.2]} 9... Nd7 {[%clk
0:02:45.9]} 10. Bb2 {[%clk 0:02:55]} 10... c6 {[%clk 0:02:43.2]} 11. Bd3 {[%clk
0:02:42.7]} 11... Ndf6 {[%clk 0:02:42.1]} 12. Ne5 {[%clk 0:02:42.2]} 12... Bd7
{[%clk 0:02:39.9]} 13. O-O {[%clk 0:02:26]} 13... Be8 {[%clk 0:02:39]} 14. b5
{[%clk 0:02:20.5]} 14... cxb5 {[%clk 0:02:29]} 15. cxb5 {[%clk 0:02:17.2]} 15...
Rc8 {[%clk 0:02:28.2]} 16. Qe2 {[%clk 0:02:13.8]} 16... Nc3 {[%clk 0:02:14.2]}
17. Bxc3 {[%clk 0:02:11.1]} 17... Rxc3 {[%clk 0:02:15.1]} 18. Rfc1 {[%clk
0:02:11.1]} 18... Qc7 {[%clk 0:02:06.7]} 19. Qb2 {[%clk 0:02:05.5]} 19... Rxc1+
{[%clk 0:01:47.6]} 20. Rxc1 {[%clk 0:02:06.4]} 20... Qa5 {[%clk 0:01:24.1]} 21.
h3 {[%clk 0:01:38.4]} 21... Ne4 {[%clk 0:01:08.6]} 22. Qb4 {[%clk 0:00:57]}
22... Qxb4 {[%clk 0:00:46.5]} 23. axb4 {[%clk 0:00:57.9]} 23... Nd6 {[%clk
0:00:46.7]} 24. Rc7 {[%clk 0:00:49]} 24... Bxb5 {[%clk 0:00:45.9]} 25. Bxb5
{[%clk 0:00:46.5]} 25... Nxb5 {[%clk 0:00:46]} 26. Rxb7 {[%clk 0:00:46.9]} 26...
Nc3 {[%clk 0:00:40]} 27. Rxa7 {[%clk 0:00:45.7]} 27... Rb8 {[%clk 0:00:38.4]}
28. Re7 {[%clk 0:00:42.9]} 28... Kf8 {[%clk 0:00:31.7]} 29. Rxe6 {[%clk
0:00:29.2]} 29... Rxb4 {[%clk 0:00:31.3]} 30. Rc6 {[%clk 0:00:23.8]} 30... Rb1+
{[%clk 0:00:30.7]} 31. Kh2 {[%clk 0:00:23.1]} 31... Ne4 {[%clk 0:00:30.4]} 32.
f3 {[%clk 0:00:14.5]} 32... Nf6 {[%clk 0:00:26.7]} 0-1

[Event "Early-Titled-Tuesday-Blitz-January-30-2024"]
[Site "Chess.com"]
[Date "2024.01.30"]
[Round "7"]
[White "JeFumeDesClopes"]
[Black "Pliukha_Mikhail"]
[Result "1-0"]
[WhiteElo "2585"]
[BlackElo "2754"]
[TimeControl "180+1"]
[EndTime "9:18:52 PST"]
[Termination "JeFumeDesClopes won by checkmate"]

1. Nf3 {[%clk 0:03:00.9]} 1... Nf6 {[%clk 0:02:58.9]} 2. g3 {[%clk 0:03:01.2]}
2... e6 {[%clk 0:02:59]} 3. Bg2 {[%clk 0:03:01.1]} 3... b6 {[%clk 0:02:58.2]} 4.
O-O {[%clk 0:03:02]} 4... Bb7 {[%clk 0:02:58.5]} 5. d3 {[%clk 0:03:02.3]} 5...
Be7 {[%clk 0:02:59]} 6. e4 {[%clk 0:03:02.3]} 6... d5 {[%clk 0:02:58.6]} 7. e5
{[%clk 0:03:01.9]} 7... Nfd7 {[%clk 0:02:58.6]} 8. d4 {[%clk 0:03:02.4]} 8... c5
{[%clk 0:02:59.1]} 9. c3 {[%clk 0:03:02.3]} 9... Nc6 {[%clk 0:02:58.1]} 10. h4
{[%clk 0:03:01]} 10... Qc7 {[%clk 0:02:57]} 11. a3 {[%clk 0:02:59.4]} 11... a5
{[%clk 0:02:55.5]} 12. a4 {[%clk 0:02:58.5]} 12... cxd4 {[%clk 0:02:54.4]} 13.
cxd4 {[%clk 0:02:59.2]} 13... Ba6 {[%clk 0:02:51.9]} 14. Re1 {[%clk 0:02:51.5]}
14... Nb4 {[%clk 0:02:51.8]} 15. Nc3 {[%clk 0:02:50.8]} 15... Nd3 {[%clk
0:02:49]} 16. Re3 {[%clk 0:02:46.6]} 16... Nxc1 {[%clk 0:02:49]} 17. Rxc1 {[%clk
0:02:47.5]} 17... Qb7 {[%clk 0:02:47.7]} 18. Ng5 {[%clk 0:02:34.5]} 18... h6
{[%clk 0:02:27.2]} 19. Nxd5 {[%clk 0:01:35.8]} 19... exd5 {[%clk 0:02:21.9]} 20.
Nxf7 {[%clk 0:01:29.2]} 20... O-O {[%clk 0:02:02.2]} 21. Nxh6+ {[%clk
0:01:03.9]} 21... gxh6 {[%clk 0:02:02]} 22. Qg4+ {[%clk 0:00:59.2]} 22... Kh8
{[%clk 0:02:00.2]} 23. Qe6 {[%clk 0:00:56.9]} 23... Nf6 {[%clk 0:01:18.9]} 24.
exf6 {[%clk 0:00:52.6]} 24... Bxf6 {[%clk 0:01:19.8]} 25. Bxd5 {[%clk
0:00:51.3]} 25... Qg7 {[%clk 0:01:20.4]} 26. Bxa8 {[%clk 0:00:39.1]} 26... Bxd4
{[%clk 0:01:13.9]} 27. Rc7 {[%clk 0:00:15.1]} 27... Bxe3 {[%clk 0:00:05.7]} 28.
Rxg7 {[%clk 0:00:14.2]} 28... Bxf2+ {[%clk 0:00:06.3]} 29. Kg2 {[%clk
0:00:14.7]} 29... Kxg7 {[%clk 0:00:06.8]} 30. Be4 {[%clk 0:00:11.7]} 30... Bc5
{[%clk 0:00:07.2]} 31. Qg6+ {[%clk 0:00:11.7]} 31... Kh8 {[%clk 0:00:07.5]} 32.
Qh7# {[%clk 0:00:12.6]} 1-0

[Event "Early-Titled-Tuesday-Blitz-January-30-2024"]
[Site "Chess.com"]
[Date "2024.01.30"]
[Round "7"]
[White "Iball95"]
[Black "hakanazeri2"]
[Result "1-0"]
[WhiteElo "2789"]
[BlackElo "2607"]
[TimeControl "180+1"]
[EndTime "9:18:53 PST"]
[Termination "Iball95 won by resignation"]

1. e4 {[%clk 0:02:49.9]} 1... c5 {[%clk 0:02:58.4]} 2. Nf3 {[%clk 0:02:49.4]}
2... d6 {[%clk 0:02:58.4]} 3. Nc3 {[%clk 0:02:49.9]} 3... Nf6 {[%clk 0:02:56]}
4. d4 {[%clk 0:02:50.4]} 4... cxd4 {[%clk 0:02:56.1]} 5. Qxd4 {[%clk 0:02:51.2]}
5... Nc6 {[%clk 0:02:55.9]} 6. Bb5 {[%clk 0:02:51.7]} 6... Bd7 {[%clk
0:02:56.5]} 7. Bxc6 {[%clk 0:02:52.1]} 7... Bxc6 {[%clk 0:02:57.4]} 8. Bg5
{[%clk 0:02:51.7]} 8... e6 {[%clk 0:02:57.9]} 9. O-O-O {[%clk 0:02:51.6]} 9...
Be7 {[%clk 0:02:58.2]} 10. Rhe1 {[%clk 0:02:52.1]} 10... Qc7 {[%clk 0:02:49.3]}
11. e5 {[%clk 0:02:50.5]} 11... dxe5 {[%clk 0:02:45.4]} 12. Nxe5 {[%clk
0:02:51.4]} 12... O-O {[%clk 0:02:42.6]} 13. Qc4 {[%clk 0:02:51.5]} 13... Rac8
{[%clk 0:02:38.1]} 14. Nxc6 {[%clk 0:02:50.4]} 14... Qxc6 {[%clk 0:02:39]} 15.
Qxc6 {[%clk 0:02:50.5]} 15... Rxc6 {[%clk 0:02:38.9]} 16. Ne4 {[%clk 0:02:51.1]}
16... Rfc8 {[%clk 0:02:34.1]} 17. Re2 {[%clk 0:02:50.5]} 17... R6c7 {[%clk
0:02:12]} 18. Nxf6+ {[%clk 0:02:45.6]} 18... Bxf6 {[%clk 0:02:10.3]} 19. Bxf6
{[%clk 0:02:45.2]} 19... gxf6 {[%clk 0:02:08.5]} 20. Rd3 {[%clk 0:02:45.8]}
20... f5 {[%clk 0:01:56.3]} 21. c3 {[%clk 0:02:38.7]} 21... Kg7 {[%clk
0:01:48.6]} 22. Kc2 {[%clk 0:02:38]} 22... Kf6 {[%clk 0:01:33.5]} 23. Rh3 {[%clk
0:02:35.3]} 23... b5 {[%clk 0:01:19.1]} 24. Rxh7 {[%clk 0:02:33.9]} 24... b4
{[%clk 0:01:12.9]} 25. Rh6+ {[%clk 0:02:26.3]} 25... Kg5 {[%clk 0:01:09.7]} 26.
Rh3 {[%clk 0:02:26.9]} 26... bxc3 {[%clk 0:01:08.9]} 27. Rxc3 {[%clk 0:02:23.3]}
27... Rxc3+ {[%clk 0:01:08.5]} 28. bxc3 {[%clk 0:02:24.2]} 28... Rh8 {[%clk
0:01:08.5]} 29. h3 {[%clk 0:02:22.6]} 29... f4 {[%clk 0:01:03]} 30. Kd3 {[%clk
0:02:19.8]} 30... f3 {[%clk 0:01:00]} 31. gxf3 {[%clk 0:02:20.7]} 31... Rxh3
{[%clk 0:00:58.8]} 32. Ke3 {[%clk 0:02:19.4]} 32... Rh4 {[%clk 0:00:57.2]} 33.
Rc2 {[%clk 0:02:08.8]} 33... Rc4 {[%clk 0:00:55.3]} 34. Kd3 {[%clk 0:02:08.9]}
34... Rc6 {[%clk 0:00:51.7]} 35. c4 {[%clk 0:02:08.2]} 35... Kf4 {[%clk
0:00:51.2]} 36. Ke2 {[%clk 0:02:03.2]} 36... Rc5 {[%clk 0:00:49.6]} 37. Rc3
{[%clk 0:02:01.9]} 37... e5 {[%clk 0:00:41.9]} 38. Kd2 {[%clk 0:02:01.1]} 38...
f5 {[%clk 0:00:35.8]} 39. Kc2 {[%clk 0:01:57.8]} 39... a5 {[%clk 0:00:26.9]} 40.
Kd2 {[%clk 0:01:54.9]} 40... Kg5 {[%clk 0:00:22]} 41. Ke3 {[%clk 0:01:54]} 41...
Kh4 {[%clk 0:00:20]} 42. f4 {[%clk 0:01:53.9]} 42... Kg4 {[%clk 0:00:17.3]} 43.
fxe5 {[%clk 0:01:51.5]} 43... Rxe5+ {[%clk 0:00:18.1]} 44. Kd4 {[%clk
0:01:30.2]} 44... Re2 {[%clk 0:00:17.7]} 45. f3+ {[%clk 0:01:26.4]} 45... Kf4
{[%clk 0:00:17]} 46. a3 {[%clk 0:01:24.5]} 46... Rd2+ {[%clk 0:00:14.7]} 47. Kc5
{[%clk 0:01:24.2]} 47... Ke5 {[%clk 0:00:12.9]} 48. Re3+ {[%clk 0:01:20.1]}
48... Kf4 {[%clk 0:00:13]} 49. Rb3 {[%clk 0:01:20.7]} 49... Ke5 {[%clk
0:00:10.8]} 50. Kb5 {[%clk 0:01:20.6]} 50... Rc2 {[%clk 0:00:05.6]} 51. Rd3
{[%clk 0:01:18.2]} 51... f4 {[%clk 0:00:02.2]} 52. c5 {[%clk 0:01:17.6]} 52...
Re2 {[%clk 0:00:02.8]} 53. c6 {[%clk 0:01:13.8]} 53... Re3 {[%clk 0:00:02.6]}
54. Rxe3+ {[%clk 0:01:14.1]} 54... fxe3 {[%clk 0:00:03.1]} 55. c7 {[%clk
0:01:14.9]} 1-0

[Event "Early-Titled-Tuesday-Blitz-January-30-2024"]
[Site "Chess.com"]
[Date "2024.01.30"]
[Round "7"]
[White "FREDERICKtheMATE"]
[Black "Hovik_Hayrapetyan"]
[Result "1/2-1/2"]
[WhiteElo "2588"]
[BlackElo "2775"]
[TimeControl "180+1"]
[EndTime "9:18:53 PST"]
[Termination "Game drawn by repetition"]

1. d4 {[%clk 0:03:00.9]} 1... Nf6 {[%clk 0:02:59.7]} 2. c4 {[%clk 0:03:00.9]}
2... e6 {[%clk 0:02:59.9]} 3. Nf3 {[%clk 0:03:01.5]} 3... d5 {[%clk 0:03:00]} 4.
Nc3 {[%clk 0:03:00.9]} 4... Bb4 {[%clk 0:02:59.7]} 5. Qa4+ {[%clk 0:02:59.8]}
5... Nc6 {[%clk 0:02:59.4]} 6. e3 {[%clk 0:03:00.4]} 6... O-O {[%clk 0:02:58.8]}
7. Bd2 {[%clk 0:03:00.5]} 7... dxc4 {[%clk 0:02:52.2]} 8. Bxc4 {[%clk
0:03:01.4]} 8... Bd6 {[%clk 0:02:49.2]} 9. Qc2 {[%clk 0:03:01.3]} 9... e5 {[%clk
0:02:47.6]} 10. dxe5 {[%clk 0:03:01.6]} 10... Nxe5 {[%clk 0:02:48.5]} 11. Nxe5
{[%clk 0:03:02]} 11... Bxe5 {[%clk 0:02:49.4]} 12. f4 {[%clk 0:03:02.3]} 12...
Bxc3 {[%clk 0:02:47.5]} 13. Bxc3 {[%clk 0:03:02.5]} 13... Ng4 {[%clk 0:02:46.7]}
14. Bd4 {[%clk 0:03:01.6]} 14... c5 {[%clk 0:02:47.1]} 15. Bxc5 {[%clk
0:03:01.7]} 15... Re8 {[%clk 0:02:44.9]} 16. O-O {[%clk 0:03:01.8]} 16... Nxe3
{[%clk 0:02:37.6]} 17. Bxe3 {[%clk 0:03:02]} 17... Rxe3 {[%clk 0:02:38.5]} 18.
Qf2 {[%clk 0:03:01.7]} 18... Qb6 {[%clk 0:02:34.1]} 19. Rae1 {[%clk 0:02:55.4]}
19... Rxe1 {[%clk 0:02:30.3]} 20. Rxe1 {[%clk 0:02:56.3]} 20... Qxf2+ {[%clk
0:02:26.3]} 21. Kxf2 {[%clk 0:02:57.2]} 21... Kf8 {[%clk 0:02:26.9]} 22. Bd5
{[%clk 0:02:56.2]} 22... Bd7 {[%clk 0:02:21.1]} 23. Rc1 {[%clk 0:02:53.8]} 23...
Rc8 {[%clk 0:02:14.1]} 24. Rxc8+ {[%clk 0:02:53.8]} 24... Bxc8 {[%clk 0:02:15]}
25. Ke3 {[%clk 0:02:53.9]} 25... Ke7 {[%clk 0:02:02.1]} 26. Kd4 {[%clk
0:02:52.8]} 26... b6 {[%clk 0:01:59.4]} 27. a3 {[%clk 0:02:48.6]} 27... f6
{[%clk 0:01:58]} 28. b4 {[%clk 0:02:45.4]} 28... Kd6 {[%clk 0:01:57.1]} 29. Be4
{[%clk 0:02:44.7]} 29... h6 {[%clk 0:01:54.3]} 30. Bg6 {[%clk 0:02:37.9]} 30...
Bb7 {[%clk 0:01:51.7]} 31. g3 {[%clk 0:02:37.8]} 31... Bf3 {[%clk 0:01:46.9]}
32. h4 {[%clk 0:02:35.3]} 32... Bg4 {[%clk 0:01:43.9]} 33. Be4 {[%clk
0:02:31.7]} 33... Bd7 {[%clk 0:01:41.3]} 34. Bd3 {[%clk 0:02:26.5]} 34... Be8
{[%clk 0:01:37.7]} 35. Be4 {[%clk 0:02:25.5]} 35... Bb5 {[%clk 0:01:35.5]} 36.
Bc2 {[%clk 0:02:24.7]} 36... Ke6 {[%clk 0:01:25.8]} 37. Bg6 {[%clk 0:02:13]}
37... Bf1 {[%clk 0:01:19.8]} 38. Be4 {[%clk 0:02:11.7]} 38... Bh3 {[%clk
0:01:17.2]} 39. Bd3 {[%clk 0:02:10.2]} 39... Bf5 {[%clk 0:01:11.8]} 40. Bc4+
{[%clk 0:02:10]} 40... Kd6 {[%clk 0:01:11.8]} 41. Be2 {[%clk 0:02:07.4]} 41...
Bb1 {[%clk 0:01:09.8]} 42. Bc4 {[%clk 0:02:04.3]} 42... Bc2 {[%clk 0:01:06.4]}
43. Be2 {[%clk 0:02:02.2]} 43... Bb3 {[%clk 0:01:05.2]} 44. Bf3 {[%clk 0:02:01]}
44... Bg8 {[%clk 0:01:01.9]} 45. Be4 {[%clk 0:02:00.5]} 45... Be6 {[%clk
0:01:00.8]} 46. Bd3 {[%clk 0:01:58.5]} 46... Bd5 {[%clk 0:00:59.8]} 47. Bf5
{[%clk 0:01:55]} 47... Bf3 {[%clk 0:00:56.8]} 48. Bd3 {[%clk 0:01:53.6]} 48...
Ke6 {[%clk 0:00:55.6]} 49. Bc2 {[%clk 0:01:50.8]} 49... Bg4 {[%clk 0:00:51.3]}
50. Bd3 {[%clk 0:01:50.3]} 50... Bh3 {[%clk 0:00:48.6]} 51. Bc2 {[%clk
0:01:49.7]} 51... g5 {[%clk 0:00:39.4]} 52. hxg5 {[%clk 0:01:47]} 52... fxg5
{[%clk 0:00:40.1]} 53. fxg5 {[%clk 0:01:46.6]} 53... hxg5 {[%clk 0:00:39.8]} 54.
Bd3 {[%clk 0:01:45.4]} 54... Bg2 {[%clk 0:00:36.2]} 55. Bc2 {[%clk 0:01:42.5]}
55... Kf6 {[%clk 0:00:35.2]} 56. Bd3 {[%clk 0:01:42.2]} 56... Ke6 {[%clk
0:00:33.4]} 57. Bc2 {[%clk 0:01:41]} 57... Bf1 {[%clk 0:00:32.3]} 58. Be4 {[%clk
0:01:40.3]} 58... Be2 {[%clk 0:00:30.6]} 59. Bc2 {[%clk 0:01:39.8]} 59... Bb5
{[%clk 0:00:29.2]} 60. Be4 {[%clk 0:01:39.3]} 60... Ba4 {[%clk 0:00:28.8]} 61.
Bd3 {[%clk 0:01:38.8]} 61... Bc6 {[%clk 0:00:24.2]} 62. Bc2 {[%clk 0:01:26.3]}
62... Be8 {[%clk 0:00:23.8]} 63. Bd3 {[%clk 0:01:25.7]} 63... Bc6 {[%clk
0:00:23.1]} 64. Bc2 {[%clk 0:01:25.3]} 64... Be8 {[%clk 0:00:23.3]} 65. Bb1
{[%clk 0:01:24.6]} 65... Bc6 {[%clk 0:00:23.6]} 66. Bg6 {[%clk 0:01:23.8]} 66...
Bd7 {[%clk 0:00:23.6]} 67. Be4 {[%clk 0:01:22.9]} 67... Ba4 {[%clk 0:00:23.5]}
68. Bd3 {[%clk 0:01:21.1]} 68... Bc6 {[%clk 0:00:23.7]} 1/2-1/2